bitfinex/quotes_SOLUSD_20241225
["timestamp","ask_amount","ask_price","bid_price","bid_amount"]
[1735125379404,12.618,198.13,198.02,0.12549]
[1735125381309,20.0,198.14,198.04,23.902374]
[1735125381690,20.0,198.14,198.06,0.12549]
[1735125381893,12.616,198.17,198.06,0.12549]
[1735125381894,14.2761,198.21,198.08,23.902374]
[1735125382106,12.6134,198.21,198.1,0.12549]
[1735125382403,12.6134,198.21,198.1,23.902374]
[1735125382600,45.97324093,198.25,198.1,23.902374]
[1735125382803,39.84484093,198.25,198.12,23.902374]
[1735125382994,39.84484093,198.25,198.14,0.12549]
[1735125383310,39.84484093,198.25,198.14,23.902374]
[1735125383513,39.84484093,198.25,198.16,0.12549]
[1735125384207,12.6108,198.25,198.15,0.88229069]
[1735125384415,1.99463882,198.26,198.13,6.4896]
[1735125384713,17.35271507,198.27,198.14,23.776884]
[1735125384910,17.35271507,198.27,198.15,0.12549]
[1735125385116,12.6099,198.26,198.15,0.12549]
[1735125385614,20.0,198.23,198.13,6.4896]
[1735125387515,32.6116,198.23,198.14,0.12549]
[1735125390712,32.6116,198.23,198.13,6.4896]
[1735125391717,32.6116,198.23,198.14,0.12549]
[1735125395107,32.6116,198.23,198.13,6.4896]
[1735125396508,32.6116,198.23,198.09,1.6602]
[1735125396700,32.6116,198.23,198.1,0.12549]
[1735125397020,57.8348,198.23,198.1,0.12549]
[1735125397408,20.0,198.19,198.1,0.12549]
[1735125398400,12.6147,198.18,198.1,0.12549]
[1735125400903,20.0,198.19,198.1,0.12549]
[1735125401227,20.0,198.18,198.1,0.12549]
[1735125402306,20.0,198.2,198.1,0.12549]
[1735125402520,20.0,198.19,198.09,1.6602]
[1735125403826,12.6147,198.18,198.1,0.12549]
[1735125405227,20.0,198.15,198.1,0.12549]
[1735125406027,25.2244,198.22,198.1,0.12549]
[1735125406225,20.0,198.19,198.1,0.12549]
[1735125407606,32.6143,198.19,198.1,0.12549]
[1735125410825,12.6143,198.19,198.1,0.12549]
[1735125412937,37.8366,198.22,198.1,0.12549]
[1735125414312,12.6122,198.22,198.1,0.12549]
[1735125421812,20.0,198.19,198.09,1.6602]
[1735125422930,37.8366,198.22,198.1,0.12549]
[1735125424235,20.0,198.19,198.09,1.6602]
[1735125424631,20.0,198.19,198.08,6.6391]
[1735125425018,23.902374,198.18,198.04,1.6325]
[1735125425217,20.0,198.15,198.04,1.6325]
[1735125425819,20.0,198.14,198.04,1.6325]
[1735125426327,32.6179,198.13,198.04,1.6325]
[1735125426619,20.0,198.12,198.04,1.6325]
[1735125426826,20.0,198.1,198.03,6.5399]
[1735125427026,20.0,198.1,198.0,0.12549]
[1735125427326,20.0,198.1,197.99,1.6325]
[1735125427713,20.0,198.1,198.0,0.12549]
[1735125427934,12.6205,198.09,197.99,1.6325]
[1735125428811,23.902374,198.12,197.99,1.6325]
[1735125429014,20.0,198.05,197.99,1.6325]
[1735125430316,32.6232,198.05,197.99,1.6325]
[1735125430523,20.0,198.04,197.99,1.6325]
[1735125431751,20.0,198.02,197.91,1.6325]
[1735125431911,20.0,198.0,197.91,1.6325]
[1735125433347,20.0,197.96,197.91,1.6325]
[1735125434153,20.0,197.96,197.92,0.12549]
[1735125434752,25.21338513,197.99,197.92,0.12549]
[1735125436050,12.6836221,197.98,197.91,1.6325]
[1735125436425,12.6836221,197.98,197.92,0.12549]
[1735125436644,12.6836221,197.98,197.92,23.902374]
[1735125437134,12.6248,198.03,197.92,23.902374]
[1735125437135,20.0,198.0,197.92,23.902374]
[1735125441752,32.6223,198.07,197.94,23.902374]
[1735125442763,29.25838092,198.1,197.96,23.902374]
[1735125442963,27.2533817,198.1,197.98,23.902374]
[1735125443167,12.6197,198.11,198.02,23.902374]
[1735125444141,6.11831402,198.13,198.04,0.12549]
[1735125444760,12.6172,198.15,198.04,23.902374]
[1735125445770,12.6172,198.15,198.04,0.12549]
[1735125446079,20.0,198.12,198.04,0.12549]
[1735125446235,20.0,198.12,198.03,6.0702]
[1735125446435,20.0,198.12,198.01,1.5837]
[1735125448152,20.0,198.08,198.01,1.5837]
[1735125449859,12.6218,198.07,198.01,1.5837]
[1735125450454,12.6218,198.07,197.98,6.0702]
[1735125451251,20.0,198.04,197.98,6.0702]
[1735125451862,20.0,198.08,197.98,6.0702]
[1735125452057,20.0,198.07,197.96,1.5837]
[1735125453471,20.0,198.03,197.96,1.5837]
[1735125454447,20.0,198.03,197.93,6.3105]
[1735125455045,20.0,197.99,197.93,6.3105]
[1735125456157,32.6249,198.02,197.93,6.3105]
[1735125456577,32.6249,198.02,197.92,1.6369]
[1735125458575,57.8748,198.02,197.88,6.3105]
[1735125458874,20.0,197.95,197.87,1.6369]
[1735125459745,20.0,197.99,197.87,1.6369]
[1735125460275,20.0,197.91,197.87,1.6369]
[1735125461862,12.63,197.94,197.87,1.6369]
[1735125462174,20.0,197.97,197.88,0.12549]
[1735125462366,12.6262,198.0,197.88,0.12549]
[1735125464275,32.6286,197.97,197.88,0.12549]
[1735125466574,32.6286,197.97,197.87,1.6369]
[1735125467160,57.8849,197.97,197.87,1.6369]
[1735125467558,23.776884,197.96,197.87,1.6369]
[1735125467769,20.0,197.93,197.83,6.3105]
[1735125468780,12.6313,197.92,197.83,6.3105]
[1735125469792,12.6313,197.92,197.84,0.12549]
[1735125470262,20.0,197.92,197.84,23.902374]
[1735125470464,20.0,197.93,197.84,23.902374]
[1735125470690,12.6295,197.95,197.84,23.902374]
[1735125471591,1.98729582,197.98,197.84,23.902374]
[1735125471780,25.2512,198.01,197.84,23.902374]
[1735125472382,20.0,197.98,197.84,23.902374]
[1735125473091,12.6281,197.97,197.84,23.902374]
[1735125473468,12.6281,197.97,197.86,23.902374]
[1735125474895,20.0,197.94,197.86,23.902374]
[1735125476384,20.0,197.94,197.85,1.5572]
[1735125476890,20.0,197.94,197.86,0.12549]
[1735125486211,20.0,197.94,197.85,1.5572]
[1735125486212,20.0,197.9,197.85,1.5572]
[1735125487112,12.6307,197.93,197.86,0.12549]
[1735125487280,20.0,197.93,197.86,0.12549]
[1735125488278,20.0,197.93,197.85,1.5572]
[1735125488681,20.0,197.89,197.85,1.5572]
[1735125490706,20.0,197.89,197.75,12.6421]
[1735125490707,57.8921,197.93,197.81,1.6321]
[1735125494013,20.0,197.89,197.81,1.6321]
[1735125494180,57.8921,197.93,197.81,1.6321]
[1735125495603,32.6307,197.93,197.82,0.12549]
[1735125496103,12.6307,197.93,197.82,23.902374]
[1735125496315,12.6307,197.93,197.84,0.12549]
[1735125496523,12.6307,197.93,197.84,23.902374]
[1735125497197,37.8871,197.96,197.84,23.902374]
[1735125498304,20.0,197.93,197.84,23.902374]
[1735125498813,20.0,197.93,197.84,0.12549]
[1735125499063,20.0,197.93,197.83,6.2717]
[1735125499509,12.6313,197.92,197.83,6.2717]
[1735125500202,12.6313,197.92,197.84,0.12549]
[1735125500988,20.0,197.93,197.84,23.902374]
[1735125501194,12.6294,197.96,197.86,0.12549]
[1735125503185,20.0,197.93,197.86,0.12549]
[1735125503786,20.0,197.93,197.85,1.5075]
[1735125503989,32.6309,197.93,197.85,1.5075]
[1735125506708,32.6309,197.93,197.8,1.5075]
[1735125506709,57.8923,197.93,197.8,1.5075]
[1735125507002,23.776884,197.92,197.8,1.5075]
[1735125507191,20.0,197.89,197.8,1.5075]
[1735125507392,20.0,197.89,197.78,6.1613]
[1735125509124,20.0,197.85,197.78,6.1613]
[1735125509518,20.0,197.85,197.79,0.12549]
[1735125509703,12.6339,197.88,197.79,0.12549]
[1735125510018,7.78555481,197.91,197.79,0.12549]
[1735125510224,12.6326,197.9,197.79,0.12549]
[1735125511296,20.0,197.87,197.79,0.12549]
[1735125512125,12.6326,197.9,197.79,0.12549]
[1735125512310,12.6305,197.94,197.81,23.902374]
[1735125512510,12.6305,197.94,197.83,0.12549]
[1735125513500,12.75239,197.99,197.83,0.12549]
[1735125514105,20.0,197.96,197.83,0.12549]
[1735125514507,12.6275,197.98,197.85,0.12549]
[1735125514715,12.6275,197.98,197.85,23.902374]
[1735125515520,12.6275,197.98,197.87,0.12549]
[1735125515826,12.6275,197.98,197.87,23.902374]
[1735125516211,20.0,197.95,197.87,23.902374]
[1735125517926,20.0,197.95,197.87,0.12549]
[1735125520330,20.0,197.98,197.87,0.12549]
[1735125520527,20.0,197.96,197.87,0.12549]
[1735125524543,20.0,197.94,197.87,0.12549]
[1735125525439,20.0,197.94,197.86,6.098]
[1735125526418,20.0,197.98,197.86,6.098]
[1735125526739,20.0,197.96,197.86,6.098]
[1735125528119,20.0,197.96,197.86,4.493]
[1735125529544,12.6313,197.93,197.86,4.493]
[1735125530045,32.6289,197.96,197.86,4.493]
[1735125531744,32.6289,197.96,197.87,23.902374]
[1735125533231,32.6289,197.96,197.87,23.6672095]
[1735125533548,32.6289,197.96,197.86,4.493]
[1735125535149,57.8865,197.96,197.86,4.493]
[1735125536252,20.0,197.95,197.84,1.5715]
[1735125536438,45.2576,197.96,197.84,1.5715]
[1735125536439,20.0,197.91,197.84,1.5715]
[1735125536966,20.0,197.87,197.78,1.6102]
[1735125537552,19.93908907,197.87,197.78,1.6102]
[1735125538137,12.6351,197.86,197.78,1.6102]
[1735125538535,12.6351,197.86,197.76,6.1457]
[1735125539731,20.0,197.83,197.76,6.1457]
[1735125540131,20.41855481,197.9,197.76,6.1457]
[1735125540323,20.0,197.87,197.77,0.12549]
[1735125540531,20.0,197.87,197.76,6.1457]
[1735125542155,12.6351,197.86,197.76,6.1457]
[1735125542332,20.0,197.83,197.76,6.1457]
[1735125542535,20.41875481,197.9,197.77,23.902374]
[1735125542735,20.41875481,197.9,197.79,0.12549]
[1735125542931,12.6307,197.93,197.79,23.902374]
[1735125543556,12.6307,197.93,197.81,0.12549]
[1735125544348,12.6288,197.96,197.81,0.12549]
[1735125544538,20.0,197.93,197.81,0.12549]
[1735125545457,20.0,197.96,197.81,0.12549]
[1735125545660,20.0,197.95,197.81,23.902374]
[1735125545861,12.6275,197.98,197.83,23.902374]
[1735125546063,12.6275,197.98,197.85,23.902374]
[1735125547547,21.98922967,198.01,197.87,23.902374]
[1735125547753,20.0,197.99,197.87,23.902374]
[1735125551267,23.776884,198.01,197.87,0.12549]
[1735125551772,20.0,197.97,197.87,0.12549]
[1735125552866,20.0,197.95,197.87,0.12549]
[1735125554866,20.0,197.95,197.87,23.902374]
[1735125556763,20.0,197.93,197.86,1.5232]
[1735125560062,12.627,197.99,197.87,0.12549]
[1735125560366,20.0,197.96,197.87,0.12549]
[1735125561286,20.0,197.96,197.87,23.902374]
[1735125562773,20.0,197.96,197.86,1.5232]
[1735125562977,20.0,197.98,197.86,1.5232]
[1735125563556,20.0,197.94,197.86,1.5232]
[1735125563976,32.6304,197.94,197.86,1.5232]
[1735125568981,20.0,197.94,197.86,1.5232]
[1735125569281,12.6282,197.97,197.87,0.12549]
[1735125569452,12.6282,197.97,197.87,23.902374]
[1735125570379,12.6282,197.97,197.88,0.12549]
[1735125571779,12.6282,197.97,197.86,1.5232]
[1735125577992,20.0,197.94,197.86,1.5232]
[1735125579294,32.6304,197.94,197.86,1.5232]
[1735125584169,20.0,197.91,197.84,6.4315]
[1735125584378,20.0,197.91,197.81,1.5458]
[1735125585190,20.0,197.87,197.81,1.5458]
[1735125585360,20.0,197.87,197.79,6.2248]
[1735125585562,20.0,197.87,197.76,1.5458]
[1735125586084,12.6358,197.85,197.76,1.5458]
[1735125586290,20.0,197.82,197.76,1.5458]
[1735125587072,32.6379,197.82,197.76,1.5458]
[1735125588379,20.0,197.84,197.76,1.5458]
[1735125588684,20.0,197.83,197.76,1.5458]
[1735125592396,32.637,197.84,197.76,1.5458]
[1735125592796,23.776884,197.83,197.76,1.5458]
[1735125593003,23.776884,197.83,197.74,6.2248]
[1735125593202,23.776884,197.83,197.71,1.6358]
[1735125593506,32.637,197.84,197.71,1.6358]
[1735125594697,32.637,197.84,197.72,0.12549]
[1735125594891,32.637,197.84,197.72,23.902374]
[1735125598606,32.637,197.84,197.71,1.6358]
[1735125599205,23.776884,197.83,197.71,1.6358]
[1735125599394,20.0,197.8,197.71,1.6358]
[1735125600404,32.6394,197.8,197.71,1.6358]
[1735125600901,12.6372,197.83,197.72,23.902374]
[1735125602186,12.6372,197.83,197.71,1.6358]
[1735125602806,20.0,197.8,197.71,1.6358]
[1735125603305,20.0,197.8,197.72,0.12549]
[1735125604132,20.0,197.8,197.72,23.902374]
[1735125606637,12.6372,197.83,197.72,23.902374]
[1735125607713,12.6372,197.83,197.71,1.6358]
[1735125608310,12.6372,197.83,197.72,23.902374]
[1735125608499,20.0,197.83,197.72,23.902374]
[1735125609110,20.0,197.83,197.71,1.6358]
[1735125610414,20.0,197.79,197.71,1.6358]
[1735125611417,20.0,197.75,197.71,1.6358]
[1735125612212,20.0,197.75,197.65,1.69509]
[1735125612520,20.0,197.75,197.67,0.12549]
[1735125614117,12.6423,197.75,197.65,1.5696]
[1735125614606,20.0,197.75,197.66,0.12549]
[1735125615593,20.0,197.75,197.66,23.902374]
[1735125616918,20.0,197.75,197.66,23.902374]
[1735125617900,12.6404,197.78,197.66,23.902374]
[1735125618093,12.6404,197.78,197.65,1.5696]
[1735125618515,12.6404,197.78,197.66,0.12549]
[1735125619429,20.0,197.75,197.65,1.5696]
[1735125619721,20.0,197.74,197.65,1.5696]
[1735125620218,20.0,197.74,197.59,6.3371]
[1735125620399,20.0,197.74,197.59,7.9132]
[1735125620600,20.0,197.7,197.59,7.9132]
[1735125620819,20.0,197.7,197.6,0.12549]
[1735125621219,20.0,197.7,197.59,7.9132]
[1735125621920,20.0,197.7,197.59,1.5761]
[1735125622519,12.646,197.69,197.59,1.5761]
[1735125623419,20.0,197.66,197.54,6.3371]
[1735125623727,20.0,197.66,197.47,55.3194]
[1735125623728,6.6093,197.61,197.48,1.5761]
[1735125623895,20.0,197.58,197.44,6.3371]
[1735125624094,20.0,197.57,197.44,6.3371]
[1735125625117,20.0,197.56,197.43,1.5761]
[1735125625620,20.0,197.53,197.43,1.5761]
[1735125625819,20.0,197.55,197.4,0.12549]
[1735125626005,20.0,197.55,197.39,6.3371]
[1735125626210,20.0,197.55,196.45,92.2304]
[1735125626211,30.386184,197.5,197.34,6.3371]
[1735125626408,20.0,197.47,197.34,6.3371]
[1735125626808,20.0,197.47,197.32,1.5761]
[1735125627121,20.0,197.47,197.33,0.12549]
[1735125627325,20.0,197.47,197.35,0.12549]
[1735125628118,20.0,197.47,197.35,23.902374]
[1735125628319,6.6093,197.5,197.39,30.239474]
[1735125628320,20.0,197.5,197.39,30.239474]
[1735125628721,20.0,197.5,197.39,6.46259]
[1735125629405,20.0,197.5,197.39,23.902374]
[1735125638343,20.69583108,197.53,197.4,0.75970126]
[1735125638630,20.69583108,197.53,197.41,23.902374]
[1735125639224,20.69583108,197.53,197.38,0.75965124]
[1735125639531,20.69583108,197.53,197.39,23.902374]
[1735125640037,20.69583108,197.53,197.39,36.567574]
[1735125640209,20.69583108,197.53,197.43,0.12549]
[1735125640407,20.69583108,197.53,197.45,23.902374]
[1735125641736,20.69583108,197.53,197.43,23.776884]
[1735125642629,20.69583108,197.53,197.4,23.776884]
[1735125643137,20.69583108,197.53,197.41,0.12549]
[1735125647240,20.69583108,197.53,197.44,0.12549]
[1735125648242,20.69583108,197.53,197.44,23.902374]
[1735125648726,8.1825,197.55,197.44,23.902374]
[1735125649038,8.1825,197.55,197.44,36.564374]
[1735125656950,5.6825,197.55,197.44,36.564374]
[1735125658146,1.5732,197.55,197.44,36.564374]
[1735125658636,1.5732,197.55,197.46,23.902374]
[1735125659824,1.5732,197.55,197.42,6.6555]
[1735125660023,20.0,197.52,197.38,0.75953279]
[1735125660226,20.0,197.51,197.37,8.2671]
[1735125660739,20.0,197.51,197.38,0.12549]
[1735125661247,20.0,197.51,197.37,8.2671]
[1735125661248,20.0,197.51,197.37,1.6116]
[1735125661632,20.0,197.51,197.38,0.12549]
[1735125661829,12.6582,197.5,197.34,0.75982389]
[1735125662041,21.5443,197.47,197.32,8.97744474]
[1735125662440,27.6015,197.47,197.32,8.2176]
[1735125663328,40.2618,197.47,197.33,0.12549]
[1735125663927,27.6015,197.47,197.33,0.885453]
[1735125664643,27.6015,197.47,197.33,0.12549]
[1735125664829,20.0,197.45,197.33,23.902374]
[1735125666346,7.6015,197.47,197.35,23.902374]
[1735125667947,20.0,197.44,197.32,8.97743141]
[1735125668159,20.0,197.44,197.33,23.776884]
[1735125668336,20.0,197.44,197.32,8.2176]
[1735125668544,20.0,197.44,197.28,6.2674]
[1735125669441,12.6627,197.43,197.29,0.12549]
[1735125670048,12.6627,197.43,197.29,23.902374]
[1735125670256,12.6627,197.43,197.29,24.66241922]
[1735125672450,1.5443,197.42,197.28,23.776884]
[1735125672654,1.5443,197.42,197.29,0.12549]
[1735125673035,20.0,197.4,197.28,0.12549]
[1735125673559,6.0572,197.39,197.28,0.12549]
[1735125673735,6.0572,197.39,197.25,0.76014053]
[1735125674131,20.0,197.36,197.23,18.9424]
[1735125674354,20.0,197.36,197.23,6.2674]
[1735125674551,1.5443,197.35,197.23,6.2674]
[1735125674857,1.5443,197.35,197.22,2.32231464]
[1735125675463,1.5443,197.35,197.22,1.5621]
[1735125675643,20.0,197.34,197.2,13.43763452]
[1735125675960,6.0572,197.33,197.2,13.43763452]
[1735125676139,6.0572,197.33,197.24,0.12549]
[1735125677050,6.0572,197.33,197.24,23.902374]
[1735125678060,1.5443,197.35,197.24,23.902374]
[1735125678252,1.5443,197.35,197.26,0.12549]
[1735125678452,1.5443,197.35,197.26,23.902374]
[1735125678767,6.3209,197.38,197.28,23.902374]
[1735125679762,6.3209,197.38,197.3,23.902374]
[1735125681077,6.3209,197.38,197.32,0.12549]
[1735125681249,6.5861,197.42,197.32,24.66238276]
[1735125681448,1.5009,197.44,197.36,23.902374]
[1735125682277,1.5009,197.44,197.38,0.12549]
[1735125682456,1.5009,197.44,197.38,23.902374]
[1735125684747,6.5861,197.47,197.4,0.12549]
[1735125684946,6.5861,197.47,197.4,23.902374]
[1735125685152,1.5009,197.49,197.4,23.902374]
[1735125687479,1.5009,197.49,197.36,0.7596174]
[1735125687655,1.5009,197.49,197.35,32.6672]
[1735125688193,21.5009,197.49,197.36,0.12549]
[1735125689080,21.5009,197.49,197.36,23.902374]
[1735125689446,21.5009,197.49,197.31,12.67]
[1735125689745,12.6595,197.48,197.31,12.67]
[1735125689948,20.0,197.45,197.32,0.12549]
[1735125690147,20.0,197.45,197.31,12.67]
[1735125691271,6.5861,197.44,197.31,12.67]
[1735125691460,6.5861,197.44,197.32,0.12549]
[1735125691668,6.5861,197.44,197.32,23.902374]
[1735125692353,20.0,197.41,197.27,12.6724]
[1735125695746,20.0,197.41,197.28,0.12549]
[1735125695947,22.00824222,197.41,197.28,0.12549]
[1735125696870,34.67224222,197.41,197.27,20.0]
[1735125697080,34.67224222,197.41,197.25,23.776884]
[1735125697375,20.0,197.36,197.25,23.776884]
[1735125697763,20.0,197.36,197.26,0.12549]
[1735125699577,7.987,197.39,197.26,0.12549]
[1735125700750,7.987,197.39,197.23,20.0]
[1735125701151,7.987,197.39,197.25,0.12549]
[1735125701370,20.0,197.36,197.25,0.12549]
[1735125701580,20.0,197.36,197.21,12.6768]
[1735125701865,1.6635,197.35,197.21,12.6768]
[1735125702062,1.6635,197.35,197.22,0.12549]
[1735125703075,1.6635,197.35,197.24,0.12549]
[1735125703281,1.6635,197.35,197.27,0.12549]
[1735125705877,1.6635,197.35,197.26,20.0]
[1735125706171,1.6635,197.35,197.22,12.6761]
[1735125706680,1.6635,197.35,197.23,23.902374]
[1735125709376,6.4984,197.34,197.23,23.902374]
[1735125709886,6.4984,197.34,197.24,0.12549]
[1735125710755,6.4984,197.34,197.26,0.12549]
[1735125711187,6.4984,197.34,197.26,0.88572995]
[1735125711697,6.4984,197.34,197.28,0.12549]
[1735125712677,6.4984,197.34,197.22,12.6761]
[1735125712884,6.4984,197.34,197.23,23.776884]
[1735125714282,6.4984,197.34,197.19,12.678]
[1735125715286,6.43747366,197.34,197.2,0.12549]
[1735125715662,6.43747366,197.34,197.2,23.902374]
[1735125716965,6.43747366,197.34,197.22,23.902374]
[1735125719887,6.43747366,197.34,197.24,0.12549]
[1735125721790,6.43747366,197.34,197.24,23.902374]
[1735125722177,6.43747366,197.34,197.26,23.902374]
[1735125723603,6.43747366,197.34,197.28,0.12549]
[1735125725070,6.43747366,197.34,197.3,23.902374]
[1735125727092,1.6635,197.35,197.3,23.902374]
[1735125728497,1.5016,197.39,197.32,23.902374]
[1735125728703,1.5016,197.39,197.34,23.902374]
[1735125732295,1.5016,197.39,197.3,12.6708]
[1735125733491,1.5016,197.39,197.31,0.12549]
[1735125733695,1.5016,197.39,197.31,23.902374]
[1735125735401,1.5016,197.39,197.31,36.572474]
[1735125735993,1.5016,197.39,197.31,23.902374]
[1735125736401,1.5016,197.39,197.28,13.43214454]
[1735125737101,1.5016,197.39,197.29,0.12549]
[1735125738706,1.5016,197.39,197.29,23.902374]
[1735125748879,1.5016,197.39,197.3,0.76004896]
[1735125749079,1.5016,197.39,197.31,23.902374]
[1735125749313,1.5016,197.39,197.35,0.12549]
[1735125749612,1.5667,197.44,197.37,23.902374]
[1735125749786,1.5667,197.44,197.39,23.902374]
[1735125749990,1.5667,197.44,197.41,23.902374]
[1735125754714,1.5667,197.44,197.38,23.776884]
[1735125754924,1.5667,197.44,197.27,6.1286]
[1735125755108,1.5667,197.44,197.29,12.6717]
[1735125756026,1.5667,197.44,197.3,0.12549]
[1735125756403,1.5667,197.44,197.32,20.0]
[1735125757824,1.5667,197.44,197.33,0.12549]
[1735125759330,1.5667,197.44,197.33,23.902374]
[1735125761026,1.5667,197.44,197.33,24.66229835]
[1735125761509,1.5667,197.44,197.33,23.902374]
[1735125764829,1.5667,197.44,197.35,23.902374]
[1735125765035,1.5667,197.44,197.39,0.12549]
[1735125765333,1.5667,197.44,197.41,23.902374]
[1735125765754,1.6503,197.49,197.41,23.902374]
[1735125766124,1.6503,197.49,197.43,23.902374]
[1735125768347,1.6503,197.49,197.42,23.776884]
[1735125768940,1.6503,197.49,197.43,0.12549]
[1735125776429,1.6503,197.49,197.39,13.42429209]
[1735125776631,1.6503,197.49,197.4,23.776884]
[1735125776842,1.6503,197.49,197.41,0.12549]
[1735125780657,1.6503,197.49,197.41,12.78889]
[1735125780856,1.6503,197.49,197.43,0.12549]
[1735125781057,1.6503,197.49,197.45,0.12549]
[1735125782132,1.6503,197.49,197.38,32.6656]
[1735125782351,1.6503,197.49,197.39,23.776884]
[1735125782555,1.6503,197.49,197.4,0.12549]
[1735125792058,1.6503,197.49,197.42,0.12549]
[1735125792879,6.39258618,197.57,197.45,0.12549]
[1735125792880,1.5468,197.53,197.45,0.12549]
[1735125793080,1.5468,197.53,197.52,20.0]
[1735125793236,6.3293,197.55,197.52,20.0]
[1735125793443,1.5468,197.58,197.52,20.0]
[1735125793957,1.5468,197.58,197.51,23.902374]
[1735125794633,1.5468,197.58,197.46,20.0]
[1735125794850,20.0,197.57,197.42,0.75940901]
[1735125795456,20.0,197.57,197.43,0.12549]
[1735125795962,20.0,197.57,197.43,0.884997]
[1735125796151,32.6537,197.57,197.45,0.12549]
[1735125802472,6.5679,197.56,197.45,0.12549]
[1735125802762,8.1128,197.56,197.45,0.12549]
[1735125802964,8.1128,197.56,197.45,0.88503617]
[1735125803164,8.1128,197.56,197.47,0.12549]
[1735125803366,8.1128,197.56,197.49,0.12549]
[1735125803548,8.1128,197.56,197.51,0.12549]
[1735125804052,8.1128,197.61,197.53,23.902374]
[1735125804255,8.1128,197.61,197.55,0.12549]
[1735125805044,8.1128,197.61,197.54,0.12549]
[1735125807559,8.1128,197.61,197.5,20.0]
[1735125807746,8.1128,197.61,197.46,0.75934569]
[1735125807947,8.1128,197.61,197.43,0.12549]
[1735125808182,8.1128,197.61,197.45,0.12549]
[1735125808381,8.1128,197.61,197.47,0.12549]
[1735125808879,8.1128,197.61,197.42,0.75935704]
[1735125808880,20.0,197.53,197.42,0.75935704]
[1735125809052,20.0,197.53,197.38,0.75935704]
[1735125809250,20.0,197.53,197.38,13.42525704]
[1735125809671,20.0,197.53,197.39,0.12549]
[1735125809980,20.0,197.53,197.41,0.12549]
[1735125810194,20.0,197.53,197.4,0.75962159]
[1735125810494,20.0,197.53,197.41,0.12549]
[1735125810696,20.0,197.53,197.41,23.776884]
[1735125810855,21.5449,197.52,197.38,12.6659]
[1735125811052,21.5449,197.52,197.32,36.44373767]
[1735125811053,6.5679,197.51,197.34,13.42758143]
[1735125811803,6.5679,197.51,197.35,0.12549]
[1735125812292,6.5679,197.51,197.35,23.902374]
[1735125812462,6.5679,197.51,197.34,13.42758143]
[1735125812794,20.0,197.48,197.35,0.12549]
[1735125813494,20.0,197.44,197.34,0.75968143]
[1735125813786,1.5307,197.43,197.28,0.75995534]
[1735125813985,1.5307,197.43,197.29,0.12549]
[1735125814164,1.5307,197.43,197.31,0.12549]
[1735125814571,1.5307,197.43,197.33,0.12549]
[1735125814961,1.5307,197.43,197.33,23.902374]
[1735125823192,1.5307,197.43,197.22,126.27901998]
[1735125823193,6.0983,197.42,197.29,0.75987711]
[1735125823389,6.0983,197.42,197.3,20.0]
[1735125823818,6.0983,197.42,197.31,0.12549]
[1735125824114,1.5307,197.41,197.23,13.43499622]
[1735125824277,20.0,197.39,197.23,13.43499622]
[1735125824604,1.5307,197.38,197.24,0.12549]
[1735125824803,1.5307,197.38,197.26,0.12549]
[1735125825578,1.5307,197.38,197.26,43.902374]
[1735125826302,6.0983,197.37,197.21,0.76022302]